[Event "RUS-ch Boys U21 2020"]
[Site "Moscow"]
[Date "2020.12.12"]
[Round "5.2"]
[White "Salemgareev, Tagir"]
[Black "Gaifullin, Artur"]
[Result "1-0"]
[ECO "D63"]
[WhiteElo "2463"]
[BlackElo "2460"]
[Annotator "ChessBase"]
[PlyCount "95"]
[EventDate "2020.12.08"]
[EventType "tourn"]
[EventCountry "RUS"]
[SourceTitle "playchess.com"]
[Source "ChessBase"]
[SourceQuality "1"]
[TimeControl "40/5400+30:1800+30"]

1. d4 {[%emt 0:00:00]} Nf6 {[%emt 0:00:00]} 2. c4 {[%emt 0:00:00]} e6 {[%emt 0:00:00]} 3. Nf3 {[%emt 0:00:00]} d5 {[%emt 0:00:00]} 4. Nc3 {[%emt 0:00:00]} Be7 {[%emt 0:00:00]} 5. Bg5 {[%emt 0:02:48]} O-O {[%emt 0:00:00]} 6. e3 {[%emt 0:00:04]} Nbd7 {[%emt 0:00:21]} 7. Rc1 {[%emt 0:02:07]} dxc4 {[%emt 0:00:28]} 8. Bxc4 {[%emt 0:00:15]} a6 {[%emt 0:00:04]} 9. O-O {[%emt 0:08:04]} b5 {[%emt 0:00:48]} 10. Bd3 {[%emt 0:00:24]} Bb7 {[%emt 0:00:32]} 11. a4 {[%emt 0:01:33]} b4 {[%emt 0:01:15]} 12. Nb1 {[%emt 0:01:30]} c5 {[%emt 0:00:57]} 13. Nbd2 {[%emt 0:00:31]} h6 {[%emt 0:08:05]} 14. Bh4 {[%emt 0:01:31]} cxd4 {[%emt 0:04:45]} 15. exd4 {[%emt 0:01:15]} Nd5 {[%emt 0:06:02]} 16. Bg3 {[%emt 0:02:04]} a5 {[%emt 0:00:43]} 17. Nb3 {[%emt 0:02:23]} Ba6 {[%emt 0:03:30]} 18. Rc6 {[%emt 0:05:27]} Nb8 {[%emt 0:08:32]} 19. Rc1 {[%emt 0:11:54]} Bxd3 {[%emt 0:06:54]} 20. Qxd3 {[%emt 0:00:06]} Qe8 {[%emt 0:09:30]} 21. Ne5 {[%emt 0:05:00]} f5 {[%emt 0:09:39]} 22. f3 {[%emt 0:04:38]} Bd6 {[%emt 0:07:00]} 23. Rfe1 {[%emt 0:04:30]} f4 {[%emt 0:03:05]} 24. Bf2 {[%emt 0:02:07]} Bxe5 {[%emt 0:07:10]} 25. Rxe5 {[%emt 0:00:50]} Nd7 {[%emt 0:00:25]} 26. Re2 {[%emt 0:02:18]} Rf6 {[%emt 0:00:12]} 27. Qb5 {[%emt 0:04:05]} Rb8 {[%emt 0:06:31]} 28. Qxa5 {[%emt 0:04:47]} Qh5 {[%emt 0:04:07]} 29. Qa6 {[%emt 0:03:39]} Rg6 {[%emt 0:02:12]} 30. Rxe6 {[%emt 0:04:42]} N7f6 {[%emt 0:00:47]} 31. Kh1 {[%emt 0:05:46]} Rg5 {[%emt 0:05:30]} 32. Qd3 {[%emt 0:02:59]} Rf8 {[%emt 0:01:42]} 33. a5 {[%emt 0:09:29]} Ne3 {[%emt 0:01:01]} 34. Bxe3 {[%emt 0:00:24]} fxe3 {[%emt 0:00:04]} 35. Rxe3 {[%emt 0:00:18]} Nd5 {[%emt 0:00:27]} 36. Re5 {[%emt 0:00:32]} Nf4 {[%emt 0:00:18]} 37. Qd2 {[%emt 0:01:53]} Qg6 {[%emt 0:01:42]} 38. Rxg5 {[%emt 0:00:58]} hxg5 {[%emt 0:00:01]} 39. Qc2 {[%emt 0:03:11]} Qh5 {[%emt 0:00:35]} 40. a6 {[%emt 0:00:00]} g4 {[%emt 0:00:00]} 41. fxg4 {[%emt 0:01:22]} Qxg4 {[%emt 0:02:17]} 42. Qe4 {[%emt 0:00:58]} Qg5 {[%emt 0:01:09]} 43. a7 {[%emt 0:01:38]} Nd5 {[%emt 0:00:05]} 44. Qe6+ {[%emt 0:00:20]} Kh7 {[%emt 0:00:20]} 45. Qh3+ {[%emt 0:00:17]} Kg8 {[%emt 0:01:17]} 46. Rc8 {[%emt 0:00:24]} Qe7 {[%emt 0:00:12]} 47. Rxf8+ {[%emt 0:00:34]} Qxf8 {[%emt 0:00:02]} 48. Qf3 {[%emt 0:00:58]} 1-0

[Event "RUS-ch Boys U21 2020"]
[Site "Moscow"]
[Date "2020.12.12"]
[Round "5.3"]
[White "Ofitserian, Boris"]
[Black "Pogosyan, Stefan"]
[Result "1/2-1/2"]
[ECO "A05"]
[WhiteElo "2376"]
[BlackElo "2430"]
[Annotator "ChessBase"]
[PlyCount "108"]
[EventDate "2020.12.08"]
[EventType "tourn"]
[EventCountry "RUS"]
[SourceTitle "playchess.com"]
[Source "ChessBase"]
[SourceQuality "1"]
[TimeControl "40/5400+30:1800+30"]

1. Nf3 {[%emt 0:02:21]} Nf6 {[%emt 0:00:00]} 2. c4 {[%emt 0:00:07]} e6 {[%emt 0:00:12]} 3. g3 {[%emt 0:02:56]} d5 {[%emt 0:00:49]} 4. Bg2 {[%emt 0:00:13]} d4 {[%emt 0:02:41]} 5. O-O {[%emt 0:03:08]} c5 {[%emt 0:01:33]} 6. e3 {[%emt 0:00:24]} Nc6 {[%emt 0:00:32]} 7. exd4 {[%emt 0:00:05]} cxd4 {[%emt 0:00:17]} 8. d3 {[%emt 0:00:03]} Be7 {[%emt 0:02:21]} 9. Bg5 {[%emt 0:00:23]} O-O {[%emt 0:00:43]} 10. Bxf6 {[%emt 0:00:26]} Bxf6 {[%emt 0:00:26]} 11. Nbd2 {[%emt 0:00:03]} e5 {[%emt 0:02:11]} 12. Re1 {[%emt 0:00:06]} Bf5 {[%emt 0:00:59]} 13. Ne4 {[%emt 0:02:00]} Be7 {[%emt 0:01:42]} 14. a3 {[%emt 0:00:16]} a5 {[%emt 0:00:30]} 15. Rc1 {[%emt 0:00:36]} Qd7 {[%emt 0:09:42]} 16. Qa4 {[%emt 0:02:49]} Qc7 {[%emt 0:22:18]} 17. c5 {[%emt 0:06:39]} Bd7 {[%emt 0:03:00]} 18. Nfd2 {[%emt 0:00:33]} Nb8 {[%emt 0:05:36]} 19. Qd1 {[%emt 0:03:42]} a4 {[%emt 0:05:36]} 20. Nc4 {[%emt 0:00:36]} Bc6 {[%emt 0:01:42]} 21. Ned6 {[%emt 0:11:57]} Bxg2 {[%emt 0:11:28]} 22. Kxg2 {[%emt 0:00:05]} Nd7 {[%emt 0:01:34]} 23. Qf3 {[%emt 0:09:27]} Nxc5 {[%emt 0:03:21]} 24. Rxe5 {[%emt 0:27:32]} Nxd3 {[%emt 0:04:21]} 25. Qxd3 {[%emt 0:07:41]} Bxd6 {[%emt 0:00:15]} 26. Rd5 {[%emt 0:00:40]} Bc5 {[%emt 0:01:17]} 27. Ne5 {[%emt 0:09:40]} b6 {[%emt 0:04:22]} 28. Qxd4 {[%emt 0:04:04]} Rad8 {[%emt 0:04:45]} 29. Rxd8 {[%emt 0:02:34]} Rxd8 {[%emt 0:01:05]} 30. Qf4 {[%emt 0:01:44]} h6 {[%emt 0:02:09]} 31. Rc2 {[%emt 0:01:07]} Rd4 {[%emt 0:02:37]} 32. Qe3 {[%emt 0:00:58]} Rd5 {[%emt 0:01:10]} 33. Nf3 {[%emt 0:00:35]} Qd7 {[%emt 0:00:15]} 34. Qe4 {[%emt 0:00:18]} Rd1 {[%emt 0:00:47]} 35. Re2 {[%emt 0:00:48]} g6 {[%emt 0:01:16]} 36. h4 {[%emt 0:00:49]} b5 {[%emt 0:02:09]} 37. h5 {[%emt 0:00:09]} gxh5 {[%emt 0:00:45]} 38. Qf4 {[%emt 0:00:31]} Bf8 {[%emt 0:00:56]} 39. Qb8 {[%emt 0:00:42]} Qd3 {[%emt 0:00:57]} 40. Qe5 {[%emt 0:00:00]} Bg7 {[%emt 0:00:00]} 41. Qe8+ {[%emt 0:05:14]} Kh7 {[%emt 0:01:11]} 42. Qe7 {[%emt 0:09:35]} Qc4 {[%emt 0:06:49]} 43. Kh2 {[%emt 0:01:51]} Qd3 {[%emt 0:05:55]} 44. Kg2 {[%emt 0:02:40]} Rc1 {[%emt 0:04:36]} 45. Ne1 {[%emt 0:03:55]} Qd5+ {[%emt 0:01:50]} 46. Nf3 {[%emt 0:01:43]} Rc6 {[%emt 0:04:44]} 47. Rd2 {[%emt 0:01:37]} Qe6 {[%emt 0:00:45]} 48. Qb7 {[%emt 0:00:21]} Rc5 {[%emt 0:01:18]} 49. Rd7 {[%emt 0:00:18]} Qc6 {[%emt 0:01:55]} 50. Rxf7 {[%emt 0:00:50]} Qxb7 {[%emt 0:00:08]} 51. Rxb7 {[%emt 0:00:04]} Kg8 {[%emt 0:01:20]} 52. Rb8+ {[%emt 0:00:07]} Kh7 {[%emt 0:02:36]} 53. Rb7 {[%emt 0:00:06]} Kg8 {[%emt 0:00:04]} 54. Rb8+ {[%emt 0:00:05]} Kh7 {[%emt 0:00:11]} 1/2-1/2

[Event "RUS-ch Boys U21 2020"]
[Site "Moscow"]
[Date "2020.12.12"]
[Round "5.4"]
[White "Murzin, Volodar"]
[Black "Smirnov, Timofey"]
[Result "1/2-1/2"]
[ECO "B31"]
[WhiteElo "2470"]
[BlackElo "2394"]
[Annotator "ChessBase"]
[PlyCount "80"]
[EventDate "2020.12.08"]
[EventType "tourn"]
[EventCountry "RUS"]
[SourceTitle "playchess.com"]
[Source "ChessBase"]
[SourceQuality "1"]
[TimeControl "40/5400+30:1800+30"]

1. e4 {[%emt 0:00:00]} c5 {[%emt 0:00:07]} 2. Nf3 {[%emt 0:00:00]} Nc6 {[%emt 0:00:09]} 3. Bb5 {[%emt 0:00:00]} g6 {[%emt 0:00:13]} 4. Bxc6 {[%emt 0:00:05]} dxc6 {[%emt 0:00:12]} 5. d3 {[%emt 0:00:24]} Bg7 {[%emt 0:00:17]} 6. O-O {[%emt 0:00:05]} Nf6 {[%emt 0:00:55]} 7. a4 {[%emt 0:02:01]} Nd7 {[%emt 0:03:53]} 8. Nbd2 {[%emt 0:03:38]} O-O {[%emt 0:04:26]} 9. a5 {[%emt 0:03:44]} e5 {[%emt 0:00:30]} 10. Nc4 {[%emt 0:00:19]} Qe7 {[%emt 0:00:23]} 11. Be3 {[%emt 0:01:28]} f6 {[%emt 0:00:43]} 12. Nfd2 {[%emt 0:02:47]} Nb8 {[%emt 0:07:56]} 13. f4 {[%emt 0:06:04]} Be6 {[%emt 0:00:26]} 14. f5 {[%emt 0:12:48]} Bf7 {[%emt 0:01:03]} 15. fxg6 {[%emt 0:03:25]} hxg6 {[%emt 0:00:52]} 16. Qg4 {[%emt 0:00:51]} Nd7 {[%emt 0:01:00]} 17. Nf3 {[%emt 0:01:41]} f5 {[%emt 0:19:23]} 18. exf5 {[%emt 0:07:21]} gxf5 {[%emt 0:00:18]} 19. Qh4 {[%emt 0:00:23]} Qxh4 {[%emt 0:02:46]} 20. Nxh4 {[%emt 0:00:38]} f4 {[%emt 0:02:43]} 21. Bd2 {[%emt 0:05:00]} e4 {[%emt 0:09:03]} 22. Bxf4 {[%emt 0:05:30]} exd3 {[%emt 0:06:00]} 23. cxd3 {[%emt 0:04:10]} Bxc4 {[%emt 0:01:26]} 24. dxc4 {[%emt 0:00:07]} Bxb2 {[%emt 0:00:09]} 25. Rab1 {[%emt 0:03:38]} Bd4+ {[%emt 0:00:09]} 26. Kh1 {[%emt 0:00:03]} b6 {[%emt 0:00:53]} 27. g4 {[%emt 0:04:33]} Ne5 {[%emt 0:08:12]} 28. Nf5 {[%emt 0:18:10]} Nxg4 {[%emt 0:06:11]} 29. Bd6 {[%emt 0:02:38]} Nf2+ {[%emt 0:13:38]} 30. Rxf2 {[%emt 0:00:11]} Bxf2 {[%emt 0:00:02]} 31. Bxf8 {[%emt 0:00:28]} Rxf8 {[%emt 0:00:12]} 32. axb6 {[%emt 0:02:18]} axb6 {[%emt 0:00:43]} 33. Ne7+ {[%emt 0:00:12]} Kh7 {[%emt 0:02:14]} 34. Rxb6 {[%emt 0:01:10]} Rf4 {[%emt 0:00:38]} 35. Rxc6 {[%emt 0:04:29]} Rxc4 {[%emt 0:02:04]} 36. Kg2 {[%emt 0:00:40]} Bh4 {[%emt 0:00:56]} 37. Nf5 {[%emt 0:01:16]} Bg5 {[%emt 0:00:26]} 38. h4 {[%emt 0:00:39]} Rf4 {[%emt 0:01:22]} 39. Rxc5 {[%emt 0:02:27]} Bxh4 {[%emt 0:00:08]} 40. Nxh4 {[%emt 0:00:00]} Rxh4 {[%emt 0:00:00]} 1/2-1/2

[Event "RUS-ch Boys U21 2020"]
[Site "Moscow"]
[Date "2020.12.12"]
[Round "5.5"]
[White "Triapishko, Alexandr"]
[Black "Nesterov, Arseniy"]
[Result "1-0"]
[ECO "A06"]
[WhiteElo "2506"]
[BlackElo "2498"]
[Annotator "RC"]
[PlyCount "57"]
[EventDate "2020.12.08"]
[EventType "tourn"]
[EventCountry "RUS"]
[SourceTitle "playchess.com"]
[Source "ChessBase"]
[SourceQuality "1"]
[TimeControl "40/5400+30:1800+30"]

1. Nf3 {[%emt 0:00:02]} d5 {[%emt 0:00:00]} 2. g3 {[%emt 0:00:08]} Nf6 {[%emt 0:00:00]} 3. Bg2 {[%emt 0:00:59]} g6 {[%emt 0:00:08]} 4. b3 {[%emt 0:16:54]} Bg7 {[%emt 0:00:07]} 5. Bb2 {[%emt 0:00:08]} c5 {[%emt 0:00:21]} 6. c4 {[%emt 0:02:13]} d4 {[%emt 0:20:31]} 7. b4 {[%emt 0:07:21]} O-O {[%emt 0:02:12]} 8. O-O {[%emt 0:06:28]} Re8 {[%emt 0:04:05]} 9. bxc5 {[%emt 0:12:31]} Nc6 {[%emt 0:03:19]} 10. d3 {[%emt 0:14:42]} e5 {[%emt 0:13:26]} 11. Nbd2 {[%emt 0:04:47]} Bf8 {[%emt 0:02:41]} 12. Ng5 {[%emt 0:14:17]} Bxc5 {[%emt 0:01:57]} 13. Nge4 {[%emt 0:01:24]} Nxe4 {[%emt 0:00:32]} 14. Nxe4 {[%emt 0:00:05]} Be7 {[%emt 0:09:29]} 15. c5 {[%emt 0:01:41]} Be6 {[%emt 0:03:37]} 16. Ba3 {[%emt 0:02:17]} Qa5 {[%emt 0:14:38]} 17. Bc1 {[%emt 0:06:57]} Rad8 {[%emt 0:09:53]} 18. Rb1 {[%emt 0:02:53]} Qxa2 {[%emt 0:05:12]} 19. Bg5 {[%emt 0:02:13]} Bxg5 {[%emt 0:03:47]} 20. Nxg5 {[%emt 0:00:03]} Bd5 {[%emt 0:01:50]} 21. Ra1 {[%emt 0:00:58]} Qb3 {[%emt 0:01:22]} 22. Qxb3 {[%emt 0:01:25]} Bxb3 {[%emt 0:00:01]} 23. Rfb1 {[%emt 0:00:17]} Bd5 {[%emt 0:01:25]} 24. Rxb7 {[%emt 0:00:44]} f5 {[%emt 0:00:53]} 25. Nxh7 {[%emt 0:00:29]} Re6 {[%emt 0:00:32]} 26. Ng5 {[%emt 0:00:16]} Ree8 {[%emt 0:00:06]} 27. Bxd5+ {[%emt 0:00:45]} Rxd5 {[%emt 0:00:01]} 28. Rc7 {[%emt 0:00:29]} Rxc5 29. Ra6 {[%emt 0:00:17]} 1-0

[Event "RUS-ch Boys U21 2020"]
[Site "Moscow"]
[Date "2020.12.13"]
[Round "6.1"]
[White "Makarian, Rudik"]
[Black "Nesterov, Arseniy"]
[Result "1-0"]
[ECO "D37"]
[WhiteElo "2441"]
[BlackElo "2498"]
[Annotator "RC"]
[PlyCount "83"]
[EventDate "2020.12.08"]
[EventType "tourn"]
[EventCountry "RUS"]
[SourceTitle "playchess.com"]
[Source "ChessBase"]
[SourceQuality "1"]
[TimeControl "40/5400+30:1800+30"]

1. d4 {[%emt 0:00:00]} Nf6 {[%emt 0:00:00]} 2. c4 {[%emt 0:00:00]} e6 {[%emt 0:00:00]} 3. Nf3 {[%emt 0:00:03]} d5 {[%emt 0:00:00]} 4. Nc3 {[%emt 0:00:09]} dxc4 {[%emt 0:00:00]} 5. e4 {[%emt 0:00:20]} b5 {[%emt 0:00:00]} 6. e5 {[%emt 0:00:12]} Nd5 {[%emt 0:00:07]} 7. Nxb5 {[%emt 0:00:04]} Nb6 {[%emt 0:00:04]} 8. Be2 {[%emt 0:00:06]} Nc6 {[%emt 0:00:21]} 9. Be3 {[%emt 0:00:08]} Ba6 {[%emt 0:07:03]} 10. Nc3 {[%emt 0:00:49]} Be7 {[%emt 0:04:39]} 11. a3 {[%emt 0:00:23]} Bb7 {[%emt 0:06:51]} 12. Qc2 {[%emt 0:00:19]} Na5 {[%emt 0:06:31]} 13. Rd1 {[%emt 0:00:15]} Rb8 {[%emt 0:22:10]} 14. h4 {[%emt 0:00:09]} h6 {[%emt 0:02:07]} 15. Rh3 {[%emt 0:00:43]} Qd7 {[%emt 0:09:55]} 16. Rg3 {[%emt 0:00:50]} g6 {[%emt 0:02:16]} 17. h5 {[%emt 0:00:41]} g5 {[%emt 0:01:25]} 18. Nd2 {[%emt 0:00:06]} Bc6 {[%emt 0:07:20]} 19. Kf1 {[%emt 0:01:08]} Ba4 {[%emt 0:06:19]} 20. Nxa4 {[%emt 0:00:55]} Qxa4 {[%emt 0:00:03]} 21. Rc1 {[%emt 0:04:38]} Qxc2 {[%emt 0:02:27]} 22. Rxc2 {[%emt 0:00:07]} Kd7 {[%emt 0:01:50]} 23. Rf3 {[%emt 0:03:45]} Rhf8 {[%emt 0:00:12]} 24. Ne4 {[%emt 0:00:09]} Nd5 {[%emt 0:04:25]} 25. Bd2 {[%emt 0:04:21]} Nb3 {[%emt 0:02:12]} 26. Bc3 {[%emt 0:00:26]} Na1 {[%emt 0:03:07]} 27. Rc1 {[%emt 0:02:22]} Nb3 {[%emt 0:00:04]} 28. Rd1 {[%emt 0:00:11]} Nxc3 {[%emt 0:02:54]} 29. Rxc3 {[%emt 0:10:11]} Na5 {[%emt 0:00:05]} 30. d5 {[%emt 0:04:29]} Rxb2 {[%emt 0:03:36]} 31. dxe6+ {[%emt 0:00:35]} Kxe6 {[%emt 0:01:48]} 32. Bg4+ {[%emt 0:07:59]} Kxe5 {[%emt 0:00:05]} 33. Re3 {[%emt 0:00:02]} Rd8 {[%emt 0:01:32]} 34. Nc3+ {[%emt 0:07:14]} Kf6 {[%emt 0:00:01]} 35. Nd5+ {[%emt 0:00:06]} Rxd5 {[%emt 0:00:11]} 36. Rxd5 {[%emt 0:00:03]} Rb1+ {[%emt 0:02:58]} 37. Ke2 {[%emt 0:00:24]} Nc6 {[%emt 0:01:23]} 38. Bd7 {[%emt 0:01:13]} c3 {[%emt 0:00:01]} 39. Rf5+ {[%emt 0:04:16]} Kg7 {[%emt 0:00:03]} 40. Bxc6 {[%emt 0:00:00]} c2 {[%emt 0:00:00]} 41. Rxe7 {[%emt 0:00:12]} Re1+ {[%emt 0:01:34]} 42. Kf3 {[%emt 0:00:39]} 1-0

[Event "RUS-ch Boys U21 2020"]
[Site "Moscow"]
[Date "2020.12.13"]
[Round "6.4"]
[White "Gaifullin, Artur"]
[Black "Ofitserian, Boris"]
[Result "1-0"]
[ECO "E12"]
[WhiteElo "2460"]
[BlackElo "2376"]
[Annotator "ChessBase"]
[PlyCount "69"]
[EventDate "2020.12.08"]
[EventType "tourn"]
[EventCountry "RUS"]
[SourceTitle "playchess.com"]
[Source "ChessBase"]
[SourceQuality "1"]
[TimeControl "40/5400+30:1800+30"]

1. d4 {[%emt 0:00:00]} Nf6 {[%emt 0:00:57]} 2. c4 {[%emt 0:00:00]} e6 {[%emt 0:02:40]} 3. Nf3 {[%emt 0:00:00]} b6 {[%emt 0:01:04]} 4. a3 {[%emt 0:00:02]} Bb7 {[%emt 0:00:27]} 5. Nc3 {[%emt 0:00:07]} g6 {[%emt 0:01:51]} 6. Qc2 {[%emt 0:00:20]} Bg7 {[%emt 0:02:00]} 7. e4 {[%emt 0:00:28]} d6 {[%emt 0:00:03]} 8. Be2 {[%emt 0:00:35]} Nbd7 {[%emt 0:04:58]} 9. O-O {[%emt 0:00:09]} O-O {[%emt 0:04:56]} 10. Be3 {[%emt 0:00:34]} h6 {[%emt 0:01:13]} 11. Nd2 {[%emt 0:01:19]} c5 {[%emt 0:03:21]} 12. d5 {[%emt 0:00:09]} Qe7 {[%emt 0:00:17]} 13. Rae1 {[%emt 0:01:11]} Ne5 {[%emt 0:05:37]} 14. h3 {[%emt 0:01:23]} g5 {[%emt 0:00:03]} 15. g3 {[%emt 0:03:30]} Ng6 {[%emt 0:29:24]} 16. Bf3 {[%emt 0:07:16]} Nh7 {[%emt 0:05:22]} 17. Kh2 {[%emt 0:08:17]} Rae8 {[%emt 0:04:35]} 18. dxe6 {[%emt 0:08:30]} Qxe6 {[%emt 0:04:34]} 19. Bg4 {[%emt 0:00:49]} Qe7 {[%emt 0:01:44]} 20. Bf5 {[%emt 0:02:33]} Nf6 {[%emt 0:00:45]} 21. Nd5 {[%emt 0:01:32]} Nxd5 {[%emt 0:00:56]} 22. cxd5 {[%emt 0:07:33]} Qf6 {[%emt 0:05:03]} 23. f4 {[%emt 0:04:11]} gxf4 {[%emt 0:08:16]} 24. gxf4 {[%emt 0:00:22]} Ba6 {[%emt 0:03:28]} 25. Rg1 {[%emt 0:01:19]} Ne7 {[%emt 0:02:00]} 26. Bd7 {[%emt 0:03:20]} Rd8 {[%emt 0:00:37]} 27. e5 {[%emt 0:00:15]} Qh4 {[%emt 0:02:54]} 28. Nf3 {[%emt 0:02:20]} Qh5 {[%emt 0:00:04]} 29. Bg4 {[%emt 0:00:06]} Qg6 {[%emt 0:00:03]} 30. f5 {[%emt 0:00:13]} Qh7 {[%emt 0:00:20]} 31. Qa4 {[%emt 0:02:08]} dxe5 {[%emt 0:04:18]} 32. f6 {[%emt 0:01:42]} Nxd5 {[%emt 0:01:32]} 33. fxg7 {[%emt 0:00:12]} Rfe8 {[%emt 0:00:06]} 34. Qxa6 {[%emt 0:00:12]} h5 {[%emt 0:00:55]} 35. Ng5 {[%emt 0:03:13]} 1-0

[Event "RUS-ch Boys U21 2020"]
[Site "Moscow"]
[Date "2020.12.15"]
[Round "8.5"]
[White "Salemgareev, Tagir"]
[Black "Ofitserian, Boris"]
[Result "1-0"]
[ECO "B38"]
[WhiteElo "2463"]
[BlackElo "2376"]
[Annotator "ChessBase"]
[PlyCount "109"]
[EventDate "2020.12.08"]
[EventType "tourn"]
[EventCountry "RUS"]
[SourceTitle "playchess.com"]
[Source "ChessBase"]
[SourceQuality "1"]
[TimeControl "40/5400+30:1800+30"]

1. Nf3 {[%emt 0:00:00]} c5 {[%emt 0:00:55]} 2. c4 {[%emt 0:00:09]} g6 {[%emt 0:00:11]} 3. d4 {[%emt 0:00:50]} cxd4 {[%emt 0:00:15]} 4. Nxd4 {[%emt 0:00:06]} Bg7 {[%emt 0:00:08]} 5. e4 {[%emt 0:00:29]} Nc6 {[%emt 0:08:56]} 6. Be3 {[%emt 0:00:27]} Nf6 {[%emt 0:01:35]} 7. Nc3 {[%emt 0:00:14]} Qa5 {[%emt 0:01:30]} 8. Nb3 {[%emt 0:08:22]} Qd8 {[%emt 0:00:05]} 9. Be2 {[%emt 0:00:19]} O-O {[%emt 0:00:23]} 10. O-O {[%emt 0:01:27]} d6 {[%emt 0:00:04]} 11. f3 {[%emt 0:01:18]} b6 {[%emt 0:16:07]} 12. Qd2 {[%emt 0:01:22]} Ba6 {[%emt 0:01:46]} 13. Rfc1 {[%emt 0:02:07]} Rc8 {[%emt 0:00:36]} 14. Nb5 {[%emt 0:02:54]} Nd7 {[%emt 0:01:03]} 15. N3d4 {[%emt 0:05:36]} Bxb5 {[%emt 0:06:04]} 16. Nxb5 {[%emt 0:02:46]} Nc5 {[%emt 0:00:11]} 17. Rab1 {[%emt 0:01:00]} Ne6 {[%emt 0:01:02]} 18. Bf1 {[%emt 0:07:19]} a6 {[%emt 0:13:04]} 19. Nc3 {[%emt 0:00:37]} Bd4 {[%emt 0:00:05]} 20. Rd1 {[%emt 0:00:31]} Qc7 {[%emt 0:08:25]} 21. Nd5 {[%emt 0:02:57]} Qb7 {[%emt 0:00:09]} 22. Qf2 {[%emt 0:03:15]} Bxe3 {[%emt 0:08:19]} 23. Qxe3 {[%emt 0:00:11]} Rb8 {[%emt 0:00:59]} 24. b4 {[%emt 0:18:29]} Nc7 {[%emt 0:06:38]} 25. Nc3 {[%emt 0:07:15]} Rfc8 {[%emt 0:16:53]} 26. a3 {[%emt 0:12:18]} Qa7 {[%emt 0:04:02]} 27. a4 {[%emt 0:08:07]} a5 {[%emt 0:00:31]} 28. b5 {[%emt 0:00:30]} Nb4 {[%emt 0:01:26]} 29. e5 {[%emt 0:05:55]} Ne8 {[%emt 0:00:03]} 30. Ne4 {[%emt 0:00:28]} dxe5 {[%emt 0:00:42]} 31. c5 {[%emt 0:01:12]} bxc5 {[%emt 0:01:24]} 32. Bc4 {[%emt 0:00:19]} e6 {[%emt 0:01:32]} 33. Rd2 {[%emt 0:01:59]} Qe7 {[%emt 0:00:26]} 34. Rbd1 {[%emt 0:00:46]} Rb7 {[%emt 0:00:22]} 35. Qg5 {[%emt 0:01:51]} Qxg5 {[%emt 0:00:55]} 36. Nxg5 {[%emt 0:00:02]} Nd5 {[%emt 0:00:38]} 37. Bxd5 {[%emt 0:03:30]} exd5 {[%emt 0:00:00]} 38. Rxd5 {[%emt 0:00:02]} f6 {[%emt 0:01:04]} 39. Ne4 {[%emt 0:00:16]} c4 {[%emt 0:00:29]} 40. Rd8 {[%emt 0:00:00]} Rbb8 {[%emt 0:00:00]} 41. Rxe8+ {[%emt 0:30:23]} Rxe8 {[%emt 0:00:32]} 42. Nxf6+ {[%emt 0:00:02]} Kf7 {[%emt 0:00:06]} 43. Nxe8 {[%emt 0:00:04]} Rxe8 {[%emt 0:07:00]} 44. Kf2 {[%emt 0:00:32]} Ke6 {[%emt 0:06:46]} 45. Ke3 {[%emt 0:00:05]} Rc8 {[%emt 0:00:09]} 46. Kd2 {[%emt 0:02:07]} c3+ {[%emt 0:00:45]} 47. Kc2 {[%emt 0:00:32]} Rc4 {[%emt 0:00:12]} 48. b6 {[%emt 0:00:30]} Rb4 {[%emt 0:00:16]} 49. Rb1 {[%emt 0:00:05]} Kd6 {[%emt 0:02:00]} 50. Rb3 {[%emt 0:00:15]} Kc6 {[%emt 0:12:26]} 51. Kxc3 {[%emt 0:00:23]} Rxb3+ {[%emt 0:00:06]} 52. Kxb3 {[%emt 0:00:05]} Kxb6 {[%emt 0:00:06]} 53. Kc4 {[%emt 0:00:05]} Kc6 {[%emt 0:00:04]} 54. g3 {[%emt 0:00:13]} h6 {[%emt 0:03:44]} 55. h3 {[%emt 0:00:27]} 1-0

[Event "RUS-ch Boys U21 2020"]
[Site "Moscow"]
[Date "2020.12.16"]
[Round "9.2"]
[White "Murzin, Volodar"]
[Black "Salemgareev, Tagir"]
[Result "1-0"]
[ECO "B90"]
[WhiteElo "2470"]
[BlackElo "2463"]
[Annotator "ChessBase"]
[PlyCount "119"]
[EventDate "2020.12.08"]
[EventType "tourn"]
[EventCountry "RUS"]
[SourceTitle "playchess.com"]
[Source "ChessBase"]
[SourceQuality "1"]
[TimeControl "40/5400+30:1800+30"]

1. e4 {[%emt 0:00:00]} c5 {[%emt 0:00:00]} 2. Nf3 {[%emt 0:00:00]} d6 {[%emt 0:00:00]} 3. d4 {[%emt 0:00:00]} cxd4 {[%emt 0:00:00]} 4. Nxd4 {[%emt 0:00:00]} Nf6 {[%emt 0:00:00]} 5. Nc3 {[%emt 0:00:00]} a6 {[%emt 0:00:00]} 6. Be3 {[%emt 0:00:00]} e5 {[%emt 0:00:00]} 7. Nb3 {[%emt 0:00:02]} Be6 {[%emt 0:00:07]} 8. Qd2 {[%emt 0:00:32]} Nbd7 {[%emt 0:00:25]} 9. f3 {[%emt 0:04:03]} h5 {[%emt 0:00:09]} 10. O-O-O {[%emt 0:02:10]} Be7 {[%emt 0:01:10]} 11. Nd5 {[%emt 0:11:54]} Bxd5 {[%emt 0:23:23]} 12. exd5 {[%emt 0:00:06]} Nb6 {[%emt 0:00:03]} 13. Qa5 {[%emt 0:04:52]} Nfd7 {[%emt 0:00:14]} 14. Kb1 {[%emt 0:01:33]} Rc8 {[%emt 0:03:12]} 15. Nd2 {[%emt 0:02:28]} Nc5 {[%emt 0:01:53]} 16. c4 {[%emt 0:02:03]} Nbd7 {[%emt 0:01:20]} 17. Qxd8+ {[%emt 0:04:08]} Bxd8 {[%emt 0:05:18]} 18. b4 {[%emt 0:05:00]} Na4 {[%emt 0:00:06]} 19. Kc2 {[%emt 0:03:03]} Bb6 {[%emt 0:03:27]} 20. Bg5 {[%emt 0:03:09]} f6 {[%emt 0:04:38]} 21. Bh4 {[%emt 0:00:14]} Bd4 {[%emt 0:09:16]} 22. Ne4 {[%emt 0:08:01]} Ke7 {[%emt 0:00:03]} 23. Kb3 {[%emt 0:00:14]} b5 {[%emt 0:03:33]} 24. Be1 {[%emt 0:04:17]} Nab6 {[%emt 0:05:22]} 25. cxb5 {[%emt 0:01:24]} axb5 {[%emt 0:00:05]} 26. Bxb5 {[%emt 0:17:04]} Nxd5 {[%emt 0:00:17]} 27. Bf2 {[%emt 0:06:34]} Nc3 {[%emt 0:05:26]} 28. Bxd4 {[%emt 0:00:15]} Nxb5 {[%emt 0:03:12]} 29. Bb2 {[%emt 0:00:10]} Nb6 {[%emt 0:00:38]} 30. a4 {[%emt 0:04:52]} d5 {[%emt 0:00:11]} 31. Ng3 {[%emt 0:05:16]} Nc7 {[%emt 0:01:45]} 32. Nf5+ {[%emt 0:01:08]} Kd7 {[%emt 0:00:31]} 33. Ne3 {[%emt 0:02:15]} Ke6 {[%emt 0:10:41]} 34. Rhe1 {[%emt 0:00:30]} Nd7 {[%emt 0:01:04]} 35. f4 {[%emt 0:01:08]} Rhd8 {[%emt 0:02:56]} 36. g4 {[%emt 0:01:06]} hxg4 {[%emt 0:00:49]} 37. fxe5 {[%emt 0:00:34]} fxe5 {[%emt 0:00:11]} 38. Bxe5 {[%emt 0:01:04]} Nxe5 {[%emt 0:04:04]} 39. Nxg4 {[%emt 0:00:10]} Rf8 {[%emt 0:04:39]} 40. Nxe5 {[%emt 0:00:00]} Kd6 {[%emt 0:00:00]} 41. Nc4+ {[%emt 0:17:13]} Kc6 {[%emt 0:00:21]} 42. Na5+ {[%emt 0:01:31]} Kd6 {[%emt 0:03:14]} 43. Re3 {[%emt 0:01:18]} Rf4 {[%emt 0:08:11]} 44. Nb7+ {[%emt 0:02:46]} Kc6 {[%emt 0:00:37]} 45. Nc5 {[%emt 0:00:15]} Rb8 {[%emt 0:02:21]} 46. Nd3 {[%emt 0:00:23]} Rh4 {[%emt 0:00:04]} 47. Rg1 {[%emt 0:04:15]} Ne8 {[%emt 0:06:15]} 48. Rg6+ {[%emt 0:01:27]} Nf6 {[%emt 0:00:09]} 49. Re6+ {[%emt 0:03:26]} Kd7 {[%emt 0:00:02]} 50. Ra6 {[%emt 0:01:23]} Ke7 {[%emt 0:06:06]} 51. Rxg7+ {[%emt 0:01:01]} Kf8 {[%emt 0:00:01]} 52. Raa7 {[%emt 0:00:31]} Ne4 {[%emt 0:01:48]} 53. Raf7+ {[%emt 0:01:36]} Ke8 {[%emt 0:00:01]} 54. Rf5 {[%emt 0:02:26]} Rh3 {[%emt 0:05:24]} 55. Rg8+ {[%emt 0:01:11]} Ke7 {[%emt 0:00:07]} 56. Rxb8 {[%emt 0:00:03]} Rxd3+ {[%emt 0:00:06]} 57. Kc2 {[%emt 0:00:08]} Rc3+ {[%emt 0:00:29]} 58. Kb2 {[%emt 0:00:22]} Ke6 {[%emt 0:00:33]} 59. Rh5 {[%emt 0:00:11]} Rd3 {[%emt 0:00:13]} 60. Rb6+ {[%emt 0:00:07]} 1-0